Workbook

Sheet Swindle - Winter 2024
B3: SATURDAY SWINDLE - WINTER 2024
D5: Total | E5: Ave | G5: Swindle | K5: Latest Result - 28 December 2024
C6: Rounds | D6: S'ford | E6: S'ford | F6: Wins | G6: Pts | L6: Stableford | M6: Swindle
A7: =A6+1 -> 1 | B7: Roger Keen | C7: 12 | D7: =31+30+29+23+37+30+41+25+38+35+32+38 -> 389 | E7: =D7/C7 -> 32.41666667 | F7: 2 | G7: =8+6+4+4+23+10+22+2+20+16+11+17 -> 143 | L7: Points | M7: Points
A8: 2 | B8: Simon Cook | C8: 10 | D8: =28+32+33+30+37+38+31+31+38+36 -> 334 | E8: =D8/C8 -> 33.4 | F8: 2 | G8: =5+13+13+12+26+18+12+7+22+14 -> 142 | J8: 1 | K8: Roger Keen | L8: 38 | M8: 17
A9: 3 | B9: Tim Lloyd | C9: 10 | D9: =31+32+34+36+38+33+35+29+33+35 -> 336 | E9: =D9/C9 -> 33.6 | G9: =8+10+19+18+20+8+18+6+14+12 -> 133 | J9: =J8+1 -> 2 | K9: Simon Cook | L9: 36 | M9: 14
A10: 4 | B10: Colin Price | C10: 9 | D10: =35+33+33+33+28+37+32+42+29 -> 302 | E10: =D10/C10 -> 33.55555556 | F10: 2 | G10: =18+15+12+17+3+23+13+20+8 -> 129 | J10: =J9+1 -> 3 | K10: Tim Lloyd | L10: 35 | M10: 12
A11: 5 | B11: Les Bygrave | C11: 10 | D11: =37+35+37+29+29+31+32+32+34+31 -> 327 | E11: =D11/C11 -> 32.7 | F11: 1 | G11: =21+16+22+7+8+5+14+11+15+7 -> 126 | J11: 4 | K11: John Copas | L11: 33 | M11: 11
A12: 6 | B12: Adam Witherington | C12: 11 | D12: =32+32+31+33+30+27+37+35+32+28+32 -> 349 | E12: =D12/C12 -> 31.72727273 | F12: 1 | G12: =11+11+14+17+11+4+13+17+10+6+10 -> 124 | J12: 5 | K12: Adam Witherington | L12: 32 | M12: 10
A13: 7 | B13: Bryn Owen | C13: 11 | D13: =28+31+33+35+31+31+34+28+31+35+32 -> 349 | E13: =D13/C13 -> 31.72727273 | G13: =3+7+18+21+13+9+9+7+8+17+8 -> 120 | J13: 6 | K13: Brad Bygrave | L13: 32 | M13: 9
A14: 8 | B14: John Copas | C14: 11 | D14: =31+28+32+28+33+32+32+34+32+32+33 -> 347 | E14: =D14/C14 -> 31.54545455 | G14: =10+4+15+5+17+11+7+16+13+10+11 -> 119 | J14: 7 | K14: Bryn Owen | L14: 32 | M14: 8
A15: 9 | B15: John FitzGerald | C15: 11 | D15: =31+32+34+39+30+32+30+29+26+26+30 -> 339 | E15: =D15/C15 -> 30.81818182 | F15: 1 | G15: =9+12+14+25+8+15+8+8+4+3+6 -> 112 | J15: 8 | K15: Les Bygrave | L15: 31 | M15: 7
A16: 10 | B16: Terry Poingdestre | C16: 8 | D16: =31+32+28+36+38+31+35+26 -> 257 | E16: =D16/C16 -> 32.125 | F16: 1 | G16: =13+13+7+17+25+9+18+2 -> 104 | J16: 9 | K16: John FitzGerald | L16: 30 | M16: 6
A17: 11 | B17: Tim Horan | C17: 9 | D17: =32+34+28+37+34+27+30+25+28 -> 275 | E17: =D17/C17 -> 30.55555556 | G17: =13+19+4+20+15+4+10+3+7 -> 95 | J17: 10 | K17: Scott Browning | L17: 28 | M17: 5
A18: 12 | B18: Nick Hayward | C18: 9 | D18: =30+37+27+25+33+34+31+32+33 -> 282 | E18: =D18/C18 -> 31.33333333 | F18: 1 | G18: =7+19+6+2+14+11+11+12+12 -> 94 | J18: 11 | K18: Dennis Cantwell | L18: 27 | M18: 4
A19: 13 | B19: Iain Maxwell | C19: 7 | D19: =22+28+32+32+37+34+34 -> 219 | E19: =D19/C19 -> 31.28571429 | G19: =1+8+16+6+19+15+16 -> 81 | J19: 12 | K19: Trevor Vincent | L19: 26 | M19: 3
A20: 14 | B20: Scott Browning | C20: 5 | D20: =34+33+33+38+28 -> 166 | E20: =D20/C20 -> 33.2 | G20: =16+16+16+23+5 -> 76 | J20: 13 | K20: Terry Poingdestre | L20: 26 | M20: 2
A21: 15 | B21: Brad Bygrave | C21: 9 | D21: =32+27+27+32+28+22+28+27+32 -> 255 | E21: =D21/C21 -> 28.33333333 | G21: =14+2+7+14+6+2+4+5+9 -> 63 | J21: 14 | K21: Andy Vittery | L21: 23 | M21: 1
A22: 16 | B22: Andy Vittery | C22: 9 | D22: =27+21+31+32+27+29+37+24+23 -> 251 | E22: =D22/C22 -> 27.88888889 | G22: =4+3+11+13+3+9+18+1+1 -> 63
A23: 17 | B23: Phil Nathan | C23: 5 | D23: =32+31+30+28+37 -> 158 | E23: =D23/C23 -> 31.6 | G23: =12+12+9+6+20 -> 59
A24: 18 | B24: Paul Barnett | C24: 9 | D24: =23+32+31+29+35+25+27+27+20 -> 249 | E24: =D24/C24 -> 27.66666667 | G24: =2+10+6+10+20+2+5+2+2 -> 59
A25: 19 | B25: Paul Sims | C25: 6 | D25: =30+32+31+31+33 -> 157 | E25: =D25/C25 -> 26.16666667 | G25: =5+15+14+10+15 -> 59
A26: 20 | B26: Dennis Cantwell | C26: 7 | D26: =27+29+34+26+26+33+27 -> 202 | E26: =D26/C26 -> 28.85714286 | G26: =3+9+18+3+3+13+4 -> 53
A27: 21 | B27: Trevor Vincent | C27: 7 | D27: =31+29+28+28+33+30+26 -> 205 | E27: =D27/C27 -> 29.28571429 | G27: =11+5+6+3+14+9+3 -> 51
A28: 22 | B28: Martyn Crichton | C28: 3 | D28: =34+31+38 -> 103 | E28: =D28/C28 -> 34.33333333 | G28: =15+12+21 -> 48
A29: 23 | B29: Simon Hill | C29: 4 | D29: =38+30+27+26 -> 121 | E29: =D29/C29 -> 30.25 | F29: 1 | G29: =17+7+5+4 -> 33
A30: 24 | B30: Simon Lloyd | C30: 2 | D30: =35+31 -> 66 | E30: =D30/C30 -> 33 | G30: =20+10 -> 30
A31: 25 | B31: Kevin Poore | C31: 3 | D31: =27+30+35 -> 92 | E31: =D31/C31 -> 30.66666667 | G31: =3+11+16 -> 30
A32: 26 | B32: Phil Hames | C32: 3 | D32: =26+32+28 -> 86 | E32: =D32/C32 -> 28.66666667 | G32: =5+12+5 -> 22
A33: 27 | B33: John Machin | C33: 8 | D33: =29+20+18+15+29+17+13+24 -> 165 | E33: =D33/C33 -> 20.625 | G33: =6+2+1+2+6+1+1+2 -> 21
A34: 28 | B34: Colin Reardon | C34: 2 | D34: =31+31 -> 62 | E34: =D34/C34 -> 31 | G34: =9+9 -> 18
A35: 29 | B35: Neil Howes | C35: 3 | D35: =27+31+26 -> 84 | E35: =D35/C35 -> 28 | G35: =5+9+4 -> 18
A36: 30 | B36: Martin Thomas | C36: 6 | D36: =29+18+13+19+16+21 -> 116 | E36: =D36/C36 -> 19.33333333 | G36: =7+1+1+1+1+1 -> 12
A37: 31 | B37: Paul Reardon | C37: 1 | D37: =31 -> 31 | E37: =D37/C37 -> 31 | G37: =8 -> 8
A38: 32 | B38: Peter Brown | C38: 1 | D38: =26 -> 26 | E38: =D38/C38 -> 26 | G38: =1 -> 1
E40: =CONCATENATE("Scores after round on ",MID(K5,17,17)) -> Scores after round on 28 December 2024
E41: Rounds: | F41: =SUM(F6:F38) -> 12
